[Event "*** Titled Tuesday Blitz"]
[Site "Chess.com"]
[Date "2020.03.03"]
[Round "1"]
[White "PotapovaM"]
[Black "HouseOfDurin"]
[Result "1/2-1/2"]
[WhiteElo "2576"]
[BlackElo "2107"]
[TimeControl "180+1"]
[EndTime "9:11:11 PST"]
[Termination "Game drawn by 50-move rule"]

1. d4 {[%clk 0:03:00.9]} 1... Nf6 {[%clk 0:02:56.2]} 2. c4 {[%clk 0:03:00.9]}
2... c5 {[%clk 0:02:56.2]} 3. d5 {[%clk 0:03:00.7]} 3... b5 {[%clk 0:02:56.4]}
4. cxb5 {[%clk 0:03:00.2]} 4... a6 {[%clk 0:02:56.8]} 5. bxa6 {[%clk 0:03:01.1]}
5... Bxa6 {[%clk 0:02:57.4]} 6. Nc3 {[%clk 0:02:59.4]} 6... d6 {[%clk
0:02:57.5]} 7. e4 {[%clk 0:02:58.1]} 7... Bxf1 {[%clk 0:02:58.4]} 8. Kxf1 {[%clk
0:02:59]} 8... Nbd7 {[%clk 0:02:58.1]} 9. Nf3 {[%clk 0:02:58.5]} 9... g6 {[%clk
0:02:58.4]} 10. g3 {[%clk 0:02:58.5]} 10... Bg7 {[%clk 0:02:58.9]} 11. Kg2
{[%clk 0:02:58.4]} 11... O-O {[%clk 0:02:59.5]} 12. a4 {[%clk 0:02:58.6]} 12...
Qa5 {[%clk 0:02:56.3]} 13. Bd2 {[%clk 0:02:52.7]} 13... Qb4 {[%clk 0:02:55.5]}
14. Qc2 {[%clk 0:02:50.7]} 14... Ng4 {[%clk 0:02:28.6]} 15. b3 {[%clk
0:02:24.9]} 15... c4 {[%clk 0:01:55.4]} 16. Nb5 {[%clk 0:02:12]} 16... Qxb3
{[%clk 0:01:39.3]} 17. Qxb3 {[%clk 0:02:11.6]} 17... cxb3 {[%clk 0:01:40.2]} 18.
Rab1 {[%clk 0:02:06.4]} 18... Rxa4 {[%clk 0:01:27.4]} 19. Rhe1 {[%clk
0:01:38.5]} 19... Nc5 {[%clk 0:01:12.8]} 20. Nc3 {[%clk 0:01:03]} 20... Rc4
{[%clk 0:01:10.5]} 21. Nb5 {[%clk 0:00:55.5]} 21... b2 {[%clk 0:00:51.5]} 22.
Bg5 {[%clk 0:00:38]} 22... f6 {[%clk 0:00:29.5]} 23. Bf4 {[%clk 0:00:32.9]}
23... Rc2 {[%clk 0:00:28.4]} 24. Nbd4 {[%clk 0:00:15.2]} 24... Rxf2+ {[%clk
0:00:27.3]} 25. Kg1 {[%clk 0:00:15.1]} 25... f5 {[%clk 0:00:21]} 26. h3 {[%clk
0:00:11.1]} 26... Bxd4 {[%clk 0:00:20.6]} 27. Nxd4 {[%clk 0:00:10.9]} 27... Rxf4
{[%clk 0:00:06.1]} 28. gxf4 {[%clk 0:00:09.2]} 28... Nf6 {[%clk 0:00:06.2]} 29.
exf5 {[%clk 0:00:07.8]} 29... Nxd5 {[%clk 0:00:04.5]} 30. fxg6 {[%clk
0:00:04.4]} 30... hxg6 {[%clk 0:00:04]} 31. Re2 {[%clk 0:00:03.3]} 31... Rxf4
{[%clk 0:00:03]} 32. Nc6 {[%clk 0:00:02]} 32... Nd3 {[%clk 0:00:02.8]} 33. Rd2
{[%clk 0:00:02.3]} 33... Rf3 {[%clk 0:00:02.2]} 34. Rc2 {[%clk 0:00:02.6]} 34...
Re3 {[%clk 0:00:02.5]} 35. Rd2 {[%clk 0:00:03.1]} 35... Re1+ {[%clk 0:00:02.9]}
36. Rxe1 {[%clk 0:00:03.7]} 36... Nxe1 {[%clk 0:00:03.8]} 37. Rxb2 {[%clk
0:00:04.6]} 37... Nf3+ {[%clk 0:00:04.7]} 38. Kf2 {[%clk 0:00:04.2]} 38... Ne5
{[%clk 0:00:05.6]} 39. Nxe5 {[%clk 0:00:03.8]} 39... dxe5 {[%clk 0:00:05.3]} 40.
Re2 {[%clk 0:00:04.4]} 40... Nf6 {[%clk 0:00:04.4]} 41. Rxe5 {[%clk 0:00:04.3]}
41... Kf7 {[%clk 0:00:05.3]} 42. Re1 {[%clk 0:00:04.7]} 42... Nd5 {[%clk
0:00:04.8]} 43. Kg3 {[%clk 0:00:04.8]} 43... Kf6 {[%clk 0:00:04.5]} 44. Rf1+
{[%clk 0:00:05.4]} 44... Kg7 {[%clk 0:00:04.6]} 45. Kg4 {[%clk 0:00:05.8]} 45...
Nf6+ {[%clk 0:00:04.6]} 46. Kg3 {[%clk 0:00:05.8]} 46... Ne4+ {[%clk 0:00:04.2]}
47. Kg2 {[%clk 0:00:05.1]} 47... Nf6 {[%clk 0:00:03.3]} 48. Ra1 {[%clk
0:00:05.6]} 48... Kf7 {[%clk 0:00:03.2]} 49. Ra6 {[%clk 0:00:05.8]} 49... Ne4
{[%clk 0:00:03.2]} 50. Ra7 {[%clk 0:00:05.7]} 50... Nd6 {[%clk 0:00:03.7]} 51.
Ra8 {[%clk 0:00:06]} 51... Nf5 {[%clk 0:00:04.6]} 52. Ra1 {[%clk 0:00:06.3]}
52... Ne3+ {[%clk 0:00:04.9]} 53. Kg3 {[%clk 0:00:06]} 53... Nf5+ {[%clk
0:00:05.8]} 54. Kf3 {[%clk 0:00:05.9]} 54... Nd4+ {[%clk 0:00:05.5]} 55. Ke4
{[%clk 0:00:05.8]} 55... Nf5 {[%clk 0:00:05.6]} 56. Rf1 {[%clk 0:00:06.1]} 56...
Kf6 {[%clk 0:00:05.2]} 57. Ra1 {[%clk 0:00:05.8]} 57... Nd6+ {[%clk 0:00:04.2]}
58. Kf4 {[%clk 0:00:05.7]} 58... Nf5 {[%clk 0:00:03]} 59. Ra6+ {[%clk
0:00:05.7]} 59... Nd6 {[%clk 0:00:03]} 60. Rb6 {[%clk 0:00:05.4]} 60... Kf7
{[%clk 0:00:02.7]} 61. Ra6 {[%clk 0:00:05.7]} 61... Nf5 {[%clk 0:00:02.7]} 62.
Ra8 {[%clk 0:00:05.4]} 62... Nd6 {[%clk 0:00:02.9]} 63. Kg4 {[%clk 0:00:05.7]}
63... Ne8 {[%clk 0:00:03.2]} 64. h4 {[%clk 0:00:05.9]} 64... Nf6+ {[%clk
0:00:04.1]} 65. Kf4 {[%clk 0:00:05]} 65... Nh7 {[%clk 0:00:04.5]} 66. Ra6 {[%clk
0:00:04.3]} 66... Nf6 {[%clk 0:00:05.4]} 67. Kg5 {[%clk 0:00:04.1]} 67... Nh7+
{[%clk 0:00:04.6]} 68. Kh6 {[%clk 0:00:03.6]} 68... Nf6 {[%clk 0:00:05.5]} 69.
Ra1 {[%clk 0:00:03.8]} 69... Ng4+ {[%clk 0:00:05.6]} 70. Kg5 {[%clk 0:00:04.1]}
70... Nf6 {[%clk 0:00:06.5]} 71. Rf1 {[%clk 0:00:04.5]} 71... Kg7 {[%clk
0:00:06.7]} 72. Re1 {[%clk 0:00:03.6]} 72... Kf7 {[%clk 0:00:06.9]} 73. Rf1
{[%clk 0:00:03.5]} 73... Kg7 {[%clk 0:00:06.6]} 74. Rb1 {[%clk 0:00:04.4]} 74...
Nh7+ {[%clk 0:00:06.4]} 75. Kf4 {[%clk 0:00:04.7]} 75... Nf6 {[%clk 0:00:06.4]}
76. Kg3 {[%clk 0:00:05.3]} 76... Kf7 {[%clk 0:00:06.9]} 77. Kh3 {[%clk
0:00:05.9]} 77... Nh5 {[%clk 0:00:06.7]} 78. Rc1 {[%clk 0:00:06.2]} 78... Nf6
{[%clk 0:00:07.4]} 79. Rb1 {[%clk 0:00:05.8]} 79... Nh5 {[%clk 0:00:07.5]} 80.
Rb8 {[%clk 0:00:05.9]} 80... Nf6 {[%clk 0:00:07.6]} 81. Kg3 {[%clk 0:00:05.8]}
81... Nh5+ {[%clk 0:00:07.5]} 82. Kf3 {[%clk 0:00:04.2]} 82... Nf6 {[%clk
0:00:08.4]} 83. Kf4 {[%clk 0:00:04.1]} 83... Nh5+ {[%clk 0:00:07.4]} 84. Kg4
{[%clk 0:00:04.3]} 84... Nf6+ {[%clk 0:00:07.6]} 85. Kh3 {[%clk 0:00:04.7]}
85... Nh5 {[%clk 0:00:07.6]} 86. Kg2 {[%clk 0:00:04.9]} 86... Nf6 {[%clk
0:00:08.2]} 87. Kf2 {[%clk 0:00:05.4]} 87... Nh7 {[%clk 0:00:08.7]} 88. Kf3
{[%clk 0:00:05.8]} 88... Nf6 {[%clk 0:00:09.6]} 89. Ke2 {[%clk 0:00:06.4]} 89...
Nd7 {[%clk 0:00:10.1]} 90. Rb1 {[%clk 0:00:05.9]} 90... Nf6 {[%clk 0:00:10.2]}
91. Rf1 {[%clk 0:00:06.1]} 91... Ke6 {[%clk 0:00:09.8]} 92. Kf3 {[%clk
0:00:06.3]} 92... Kf7 {[%clk 0:00:10]} 93. Re1 {[%clk 0:00:06.8]} 93... Nd5
{[%clk 0:00:09.5]} 94. Ke4 {[%clk 0:00:06.6]} 94... Nf6+ {[%clk 0:00:10.4]} 95.
Ke5 {[%clk 0:00:06.9]} 95... Nd7+ {[%clk 0:00:10.1]} 96. Kd5 {[%clk 0:00:06.8]}
96... Nf6+ {[%clk 0:00:11]} 97. Kd4 {[%clk 0:00:06.2]} 97... Nd7 {[%clk
0:00:08.7]} 98. Rf1+ {[%clk 0:00:05.6]} 98... Nf6 {[%clk 0:00:08.8]} 99. Ke3
{[%clk 0:00:05.2]} 99... Kg7 {[%clk 0:00:08.1]} 100. Kf4 {[%clk 0:00:05.3]}
100... Nh5+ {[%clk 0:00:08.1]} 101. Kg4 {[%clk 0:00:04.3]} 101... Nf6+ {[%clk
0:00:08.3]} 102. Kh3 {[%clk 0:00:04.7]} 102... Ne4 {[%clk 0:00:07.9]} 103. Rg1
{[%clk 0:00:04.3]} 103... Nf6 {[%clk 0:00:07.8]} 104. Kh2 {[%clk 0:00:03.3]}
104... Kf7 {[%clk 0:00:08]} 105. Kh3 {[%clk 0:00:03.6]} 105... Nh5 {[%clk
0:00:08.2]} 106. Ra1 {[%clk 0:00:04]} 106... Nf6 {[%clk 0:00:08.2]} 107. Kg3
{[%clk 0:00:04.3]} 107... Kg7 {[%clk 0:00:08.3]} 108. Kf4 {[%clk 0:00:04.4]}
108... Kf7 {[%clk 0:00:08]} 109. Ke5 {[%clk 0:00:04.8]} 109... Nd7+ {[%clk
0:00:07.6]} 110. Kf4 {[%clk 0:00:05]} 110... Nf6 {[%clk 0:00:08.5]} 111. Kg5
{[%clk 0:00:04.7]} 111... Nh7+ {[%clk 0:00:07]} 112. Kh6 {[%clk 0:00:04.6]}
112... Nf6 {[%clk 0:00:07.1]} 113. Rg1 {[%clk 0:00:05.1]} 113... Ng8+ {[%clk
0:00:06.5]} 114. Kh7 {[%clk 0:00:05.1]} 1/2-1/2

[Event "*** Titled Tuesday Blitz"]
[Site "Chess.com"]
[Date "2020.03.03"]
[Round "2"]
[White "agus_k"]
[Black "vladislavkovalev"]
[Result "0-1"]
[WhiteElo "2628"]
[BlackElo "2883"]
[TimeControl "180+1"]
[EndTime "9:14:46 PST"]
[Termination "vladislavkovalev won by resignation"]

1. d4 {[%clk 0:03:00.9]} 1... Nf6 {[%clk 0:02:59.2]} 2. Nf3 {[%clk 0:03:00.4]}
2... g6 {[%clk 0:02:59.5]} 3. Bg5 {[%clk 0:02:59.8]} 3... Bg7 {[%clk 0:02:59.8]}
4. Nbd2 {[%clk 0:03:00]} 4... O-O {[%clk 0:03:00.4]} 5. e3 {[%clk 0:03:00.5]}
5... d6 {[%clk 0:02:55.6]} 6. c3 {[%clk 0:03:00.8]} 6... b6 {[%clk 0:02:55.6]}
7. Bd3 {[%clk 0:02:59.7]} 7... Bb7 {[%clk 0:02:56.1]} 8. Qe2 {[%clk 0:02:59.6]}
8... a6 {[%clk 0:02:55.7]} 9. O-O {[%clk 0:02:59.2]} 9... Nc6 {[%clk 0:02:56.1]}
10. e4 {[%clk 0:02:58.7]} 10... e5 {[%clk 0:02:54.9]} 11. Rfd1 {[%clk
0:02:56.6]} 11... h6 {[%clk 0:02:53.3]} 12. d5 {[%clk 0:02:49.6]} 12... hxg5
{[%clk 0:02:42.1]} 13. dxc6 {[%clk 0:02:49.4]} 13... Bxc6 {[%clk 0:02:43]} 14.
Nxg5 {[%clk 0:02:49.5]} 14... Nh5 {[%clk 0:02:43.6]} 15. Ngf3 {[%clk 0:02:45.8]}
15... Nf4 {[%clk 0:02:43.6]} 16. Qe3 {[%clk 0:02:43.5]} 16... Bh6 {[%clk
0:02:41.9]} 17. Kh1 {[%clk 0:02:40.1]} 17... Kg7 {[%clk 0:02:37.7]} 18. Bf1
{[%clk 0:02:24.2]} 18... Nxg2 {[%clk 0:02:36.6]} 19. Qe2 {[%clk 0:02:23.1]}
19... Nf4 {[%clk 0:02:37]} 20. Qc4 {[%clk 0:02:22.9]} 20... Bb7 {[%clk
0:02:31.1]} 21. Qb3 {[%clk 0:02:19.4]} 21... f5 {[%clk 0:02:25.5]} 22. Qc2
{[%clk 0:02:18.9]} 22... Qf6 {[%clk 0:02:25.3]} 23. Ne1 {[%clk 0:01:53.3]} 23...
Qh4 {[%clk 0:02:11.3]} 24. Ndf3 {[%clk 0:01:47.4]} 24... Qh5 {[%clk 0:02:11.3]}
25. Bg2 {[%clk 0:01:45.4]} 0-1

[Event "*** Titled Tuesday Blitz"]
[Site "Chess.com"]
[Date "2020.03.03"]
[Round "2"]
[White "Chessmatus"]
[Black "Man-Chuk"]
[Result "0-1"]
[WhiteElo "2379"]
[BlackElo "2757"]
[TimeControl "180+1"]
[EndTime "9:15:14 PST"]
[Termination "Man-Chuk won by resignation"]

1. d4 {[%clk 0:03:00.9]} 1... Nf6 {[%clk 0:02:29.3]} 2. c4 {[%clk 0:02:59.2]}
2... g6 {[%clk 0:02:26.1]} 3. Nc3 {[%clk 0:02:58.6]} 3... d5 {[%clk 0:02:01.1]}
4. cxd5 {[%clk 0:02:47.2]} 4... Nxd5 {[%clk 0:02:02]} 5. e4 {[%clk 0:02:47.9]}
5... Nxc3 {[%clk 0:02:01.8]} 6. bxc3 {[%clk 0:02:48.8]} 6... Bg7 {[%clk
0:02:02.5]} 7. Nf3 {[%clk 0:02:49]} 7... c5 {[%clk 0:02:02.9]} 8. Bb5+ {[%clk
0:02:49.1]} 8... Bd7 {[%clk 0:02:02.2]} 9. Be2 {[%clk 0:02:48.7]} 9... O-O
{[%clk 0:01:58.6]} 10. O-O {[%clk 0:02:48.7]} 10... Qa5 {[%clk 0:01:58.4]} 11.
Qb3 {[%clk 0:02:46.1]} 11... b6 {[%clk 0:01:54.1]} 12. Bg5 {[%clk 0:02:43.4]}
12... e6 {[%clk 0:01:42.9]} 13. Be3 {[%clk 0:02:42.1]} 13... Rd8 {[%clk
0:01:27.8]} 14. Rfd1 {[%clk 0:02:41.1]} 14... Ba4 {[%clk 0:01:27.4]} 15. Qb2
{[%clk 0:02:37.9]} 15... Bxd1 {[%clk 0:01:27.3]} 16. Rxd1 {[%clk 0:02:38.8]}
16... cxd4 {[%clk 0:01:26.7]} 17. cxd4 {[%clk 0:02:38.6]} 17... Nc6 {[%clk
0:01:26.2]} 18. Bb5 {[%clk 0:02:30]} 18... Qb4 {[%clk 0:01:22.5]} 19. Qe2 {[%clk
0:02:27.8]} 19... Nxd4 {[%clk 0:01:15.7]} 20. Nxd4 {[%clk 0:02:18.7]} 20... Bxd4
{[%clk 0:01:14]} 21. Bc6 {[%clk 0:02:16]} 21... Rac8 {[%clk 0:01:07.9]} 0-1

[Event "*** Titled Tuesday Blitz"]
[Site "Chess.com"]
[Date "2020.03.03"]
[Round "2"]
[White "ChesterF"]
[Black "HarryCun"]
[Result "1-0"]
[WhiteElo "2443"]
[BlackElo "2110"]
[TimeControl "180+1"]
[EndTime "9:16:04 PST"]
[Termination "ChesterF won by resignation"]

1. d4 {[%clk 0:02:59.2]} 1... Nf6 {[%clk 0:02:59.8]} 2. c4 {[%clk 0:02:59.2]}
2... e6 {[%clk 0:03:00.2]} 3. Nc3 {[%clk 0:02:59.5]} 3... Bb4 {[%clk 0:03:00.1]}
4. a3 {[%clk 0:02:59.9]} 4... Bxc3+ {[%clk 0:03:00.2]} 5. bxc3 {[%clk
0:03:00.5]} 5... O-O {[%clk 0:03:01]} 6. f3 {[%clk 0:03:00]} 6... d5 {[%clk
0:02:59.8]} 7. cxd5 {[%clk 0:02:59.7]} 7... exd5 {[%clk 0:02:58.9]} 8. e3 {[%clk
0:02:59.6]} 8... Bf5 {[%clk 0:02:59]} 9. Ne2 {[%clk 0:02:50.4]} 9... c5 {[%clk
0:02:56.5]} 10. g4 {[%clk 0:02:50.3]} 10... Bg6 {[%clk 0:02:55.5]} 11. h4 {[%clk
0:02:48.8]} 11... h6 {[%clk 0:02:55.2]} 12. Nf4 {[%clk 0:02:47.8]} 12... Bh7
{[%clk 0:02:54.6]} 13. g5 {[%clk 0:02:39.6]} 13... Ne8 {[%clk 0:02:52.5]} 14.
gxh6 {[%clk 0:02:37.4]} 14... gxh6 {[%clk 0:02:53.4]} 15. dxc5 {[%clk
0:02:29.2]} 15... Nd7 {[%clk 0:02:49.4]} 16. Qxd5 {[%clk 0:02:20.7]} 16... Nef6
{[%clk 0:02:42.4]} 17. Qd4 {[%clk 0:02:20.2]} 17... Qa5 {[%clk 0:02:37.7]} 18.
Rg1+ {[%clk 0:02:02.2]} 18... Kh8 {[%clk 0:02:33.7]} 19. Nd5 {[%clk 0:02:02]}
19... Qd8 {[%clk 0:01:47.4]} 20. c4 {[%clk 0:02:01.2]} 20... Rc8 {[%clk
0:01:41.4]} 21. Bb2 {[%clk 0:01:56]} 21... Bg6 {[%clk 0:01:37.3]} 22. Nxf6
{[%clk 0:01:54.2]} 22... Nxc5 {[%clk 0:01:29.5]} 23. Nd7+ {[%clk 0:01:47.2]}
23... f6 {[%clk 0:01:24.7]} 24. Nxf8 {[%clk 0:01:38.3]} 24... Qxf8 {[%clk
0:01:21.9]} 25. Rxg6 {[%clk 0:01:37.8]} 25... Rc6 {[%clk 0:01:12.5]} 26. Rxf6
{[%clk 0:01:35.7]} 1-0

[Event "*** Titled Tuesday Blitz"]
[Site "Chess.com"]
[Date "2020.03.03"]
[Round "2"]
[White "DamianoLew95"]
[Black "ChessWarrior7197"]
[Result "0-1"]
[WhiteElo "2603"]
[BlackElo "2864"]
[TimeControl "180+1"]
[EndTime "9:16:05 PST"]
[Termination "ChessWarrior7197 won by resignation"]

1. d4 {[%clk 0:03:00.9]} 1... Nf6 {[%clk 0:02:56.8]} 2. Bf4 {[%clk 0:02:59.8]}
2... d5 {[%clk 0:02:54.5]} 3. e3 {[%clk 0:02:53.9]} 3... c5 {[%clk 0:02:54.5]}
4. dxc5 {[%clk 0:02:53.5]} 4... e6 {[%clk 0:02:37.1]} 5. b4 {[%clk 0:02:51.1]}
5... b6 {[%clk 0:02:28.4]} 6. Bxb8 {[%clk 0:02:39.3]} 6... Rxb8 {[%clk 0:02:28]}
7. Bb5+ {[%clk 0:02:38.2]} 7... Ke7 {[%clk 0:02:25.4]} 8. c6 {[%clk 0:02:32.8]}
8... Qd6 {[%clk 0:02:22]} 9. c3 {[%clk 0:02:25.9]} 9... a6 {[%clk 0:02:22.3]}
10. Bd3 {[%clk 0:02:23.4]} 10... Qxc6 {[%clk 0:02:22.2]} 11. Nf3 {[%clk
0:02:22]} 11... g6 {[%clk 0:02:22.8]} 12. O-O {[%clk 0:02:20.8]} 12... Bg7
{[%clk 0:02:22.7]} 13. Qe2 {[%clk 0:02:17.9]} 13... Rd8 {[%clk 0:02:13.5]} 14.
Bxa6 {[%clk 0:02:12.4]} 14... Bxa6 {[%clk 0:02:12.7]} 15. Qxa6 {[%clk
0:02:11.4]} 15... Ra8 {[%clk 0:02:13]} 16. Qe2 {[%clk 0:02:09.3]} 16... Ne4
{[%clk 0:02:05.9]} 17. Nd4 {[%clk 0:02:08.4]} 17... Qa4 {[%clk 0:02:05.3]} 18.
Rc1 {[%clk 0:02:05.7]} 18... Rdc8 {[%clk 0:02:03.6]} 19. a3 {[%clk 0:01:53.1]}
19... Qa6 {[%clk 0:01:49.3]} 20. Qxa6 {[%clk 0:01:48]} 20... Rxa6 {[%clk
0:01:50.2]} 21. f3 {[%clk 0:01:47]} 21... Nd6 {[%clk 0:01:47.9]} 22. Nd2 {[%clk
0:01:45.5]} 22... Rca8 {[%clk 0:01:47.4]} 23. Nb1 {[%clk 0:01:38]} 23... Nc4
{[%clk 0:01:46.5]} 24. Nb5 {[%clk 0:01:37.2]} 24... Bh6 {[%clk 0:01:37.4]} 25.
f4 {[%clk 0:01:30.8]} 25... Nxe3 {[%clk 0:01:29.5]} 26. g3 {[%clk 0:01:30.1]}
26... Rc8 {[%clk 0:01:26.5]} 27. Kf2 {[%clk 0:01:28.2]} 27... Nc4 {[%clk
0:01:25.3]} 28. Nd2 {[%clk 0:01:27.4]} 28... Nxd2 {[%clk 0:01:24.9]} 0-1

[Event "*** Titled Tuesday Blitz"]
[Site "Chess.com"]
[Date "2020.03.03"]
[Round "2"]
[White "bugbug01052018"]
[Black "Aygehovit1992"]
[Result "0-1"]
[WhiteElo "2260"]
[BlackElo "2644"]
[TimeControl "180+1"]
[EndTime "9:16:14 PST"]
[Termination "Aygehovit1992 won by resignation"]

1. e4 {[%clk 0:03:00.9]} 1... d6 {[%clk 0:02:59]} 2. d4 {[%clk 0:02:59.5]} 2...
g6 {[%clk 0:02:59.5]} 3. Nc3 {[%clk 0:02:59.6]} 3... Bg7 {[%clk 0:02:59.7]} 4.
Be3 {[%clk 0:02:58.3]} 4... c6 {[%clk 0:02:59.6]} 5. Nf3 {[%clk 0:02:58.1]} 5...
b5 {[%clk 0:02:58.7]} 6. a4 {[%clk 0:02:57]} 6... b4 {[%clk 0:02:58.1]} 7. Ne2
{[%clk 0:02:57]} 7... Nf6 {[%clk 0:02:57.5]} 8. Ng3 {[%clk 0:02:56.7]} 8... O-O
{[%clk 0:02:56.9]} 9. Bd3 {[%clk 0:02:56.4]} 9... Ng4 {[%clk 0:02:56.2]} 10. Bd2
{[%clk 0:02:49]} 10... a5 {[%clk 0:02:55.3]} 11. h3 {[%clk 0:02:49.2]} 11... Nf6
{[%clk 0:02:55]} 12. Be3 {[%clk 0:02:48.8]} 12... Nbd7 {[%clk 0:02:52.3]} 13.
O-O {[%clk 0:02:48.7]} 13... e5 {[%clk 0:02:52.4]} 14. c3 {[%clk 0:02:45.8]}
14... c5 {[%clk 0:02:48.3]} 15. d5 {[%clk 0:02:42.4]} 15... Qe7 {[%clk
0:02:14.3]} 16. Nd2 {[%clk 0:02:34]} 16... Bb7 {[%clk 0:02:08]} 17. Nc4 {[%clk
0:02:26.9]} 17... h5 {[%clk 0:02:07.2]} 18. f4 {[%clk 0:02:25]} 18... h4 {[%clk
0:02:06.3]} 19. Nh1 {[%clk 0:02:13.4]} 19... bxc3 {[%clk 0:01:53]} 20. bxc3
{[%clk 0:02:12.5]} 20... exf4 {[%clk 0:01:53.4]} 21. Rxf4 {[%clk 0:02:04.4]}
21... Nh5 {[%clk 0:01:50.3]} 22. Rg4 {[%clk 0:01:54.6]} 22... Bxc3 {[%clk
0:01:48.3]} 23. Rb1 {[%clk 0:01:51.4]} 23... Ba6 {[%clk 0:01:47.2]} 24. Bg5
{[%clk 0:01:49.4]} 24... Bf6 {[%clk 0:01:45.3]} 25. Bh6 {[%clk 0:01:42.8]} 25...
Rfb8 {[%clk 0:01:41.2]} 26. Nf2 {[%clk 0:01:41.3]} 26... Bxc4 {[%clk 0:01:36.6]}
27. Bxc4 {[%clk 0:01:40.9]} 27... Ne5 {[%clk 0:01:36.7]} 28. Bb5 {[%clk
0:01:33.8]} 28... Nxg4 {[%clk 0:01:36.2]} 29. hxg4 {[%clk 0:01:34]} 29... Ng3
{[%clk 0:01:34.6]} 30. Qe1 {[%clk 0:01:12.9]} 30... Bd4 {[%clk 0:01:33.3]} 31.
Rb2 {[%clk 0:01:06.6]} 31... Bxb2 {[%clk 0:01:31.8]} 0-1

[Event "*** Titled Tuesday Blitz"]
[Site "Chess.com"]
[Date "2020.03.03"]
[Round "2"]
[White "Dixit_Nikhil"]
[Black "TwentyHourADay"]
[Result "0-1"]
[WhiteElo "2533"]
[BlackElo "2303"]
[TimeControl "180+1"]
[EndTime "9:16:19 PST"]
[Termination "TwentyHourADay won by resignation"]

1. e4 {[%clk 0:03:00.9]} 1... g6 {[%clk 0:03:00.2]} 2. d4 {[%clk 0:03:00.5]}
2... Bg7 {[%clk 0:03:01.1]} 3. Nc3 {[%clk 0:03:01.1]} 3... d6 {[%clk 0:03:01.4]}
4. Nf3 {[%clk 0:03:00.7]} 4... a6 {[%clk 0:03:01]} 5. Be2 {[%clk 0:03:01.2]}
5... Nd7 {[%clk 0:02:59.9]} 6. O-O {[%clk 0:03:01.6]} 6... b6 {[%clk 0:02:57.2]}
7. d5 {[%clk 0:03:00]} 7... Ngf6 {[%clk 0:02:55.5]} 8. Nd4 {[%clk 0:02:59.6]}
8... O-O {[%clk 0:02:54.8]} 9. Nc6 {[%clk 0:02:59.3]} 9... Qe8 {[%clk
0:02:54.5]} 10. a4 {[%clk 0:02:59.8]} 10... e5 {[%clk 0:02:54.5]} 11. a5 {[%clk
0:02:59.3]} 11... b5 {[%clk 0:02:54.3]} 12. Bxb5 {[%clk 0:02:58.2]} 12... Nh5
{[%clk 0:02:43.7]} 13. Be2 {[%clk 0:02:55.9]} 13... Nf4 {[%clk 0:02:42.7]} 14.
Bxf4 {[%clk 0:02:53.1]} 14... exf4 {[%clk 0:02:41.7]} 15. f3 {[%clk 0:02:53.4]}
15... g5 {[%clk 0:02:39.4]} 16. Na4 {[%clk 0:02:53.1]} 16... f5 {[%clk 0:02:37]}
17. Bd3 {[%clk 0:02:52.2]} 17... fxe4 {[%clk 0:02:36.7]} 18. Bxe4 {[%clk
0:02:53.1]} 18... Nf6 {[%clk 0:02:35.3]} 19. Re1 {[%clk 0:02:52]} 19... Qh5
{[%clk 0:02:34.3]} 20. c4 {[%clk 0:02:47.9]} 20... Bd7 {[%clk 0:02:27]} 21. Ne7+
{[%clk 0:02:46.4]} 21... Kh8 {[%clk 0:02:25.9]} 22. Nc3 {[%clk 0:02:43]} 22...
Rae8 {[%clk 0:02:24.2]} 23. Nc6 {[%clk 0:02:42.2]} 23... g4 {[%clk 0:02:22.6]}
24. Qd3 {[%clk 0:02:39]} 24... Qh4 {[%clk 0:01:45.4]} 25. Re2 {[%clk 0:02:32.6]}
25... Bxc6 {[%clk 0:01:38.7]} 26. dxc6 {[%clk 0:02:31.8]} 26... Re5 {[%clk
0:01:38.8]} 27. Rae1 {[%clk 0:02:29.9]} 27... Rh5 {[%clk 0:01:35.9]} 28. h3
{[%clk 0:02:24.7]} 28... gxh3 {[%clk 0:01:33.6]} 29. g4 {[%clk 0:02:24.9]} 29...
fxg3 {[%clk 0:01:22.4]} 30. Nd5 {[%clk 0:02:10.3]} 30... Nxd5 {[%clk 0:01:10.1]}
31. Bxd5 {[%clk 0:02:11.2]} 31... Bd4+ {[%clk 0:01:08]} 32. Re3 {[%clk
0:02:07.1]} 32... g2 {[%clk 0:01:03.4]} 33. f4 {[%clk 0:01:56.6]} 33... Qxe1+
{[%clk 0:01:01.7]} 0-1

[Event "*** Titled Tuesday Blitz"]
[Site "Chess.com"]
[Date "2020.03.03"]
[Round "2"]
[White "Vyacheslav_N"]
[Black "monstertube"]
[Result "1-0"]
[WhiteElo "2476"]
[BlackElo "2129"]
[TimeControl "180+1"]
[EndTime "9:16:38 PST"]
[Termination "Vyacheslav_N won on time"]

1. e4 {[%clk 0:03:00.9]} 1... e5 {[%clk 0:02:10.7]} 2. Nc3 {[%clk 0:03:00.5]}
2... Nf6 {[%clk 0:02:08.2]} 3. f4 {[%clk 0:03:00.2]} 3... d5 {[%clk 0:02:07.3]}
4. fxe5 {[%clk 0:03:00.7]} 4... Nxe4 {[%clk 0:02:05.1]} 5. Qf3 {[%clk
0:03:01.3]} 5... Nxc3 {[%clk 0:02:03.5]} 6. dxc3 {[%clk 0:03:02.2]} 6... Be7
{[%clk 0:02:03]} 7. Bf4 {[%clk 0:03:02.7]} 7... O-O {[%clk 0:02:02.5]} 8. O-O-O
{[%clk 0:03:03.2]} 8... c6 {[%clk 0:02:02.2]} 9. c4 {[%clk 0:03:02.3]} 9... Be6
{[%clk 0:02:01.3]} 10. cxd5 {[%clk 0:03:00.5]} 10... cxd5 {[%clk 0:02:01]} 11.
Bc4 {[%clk 0:02:59]} 11... Qa5 {[%clk 0:01:51]} 12. Bxd5 {[%clk 0:02:54.5]}
12... Bxd5 {[%clk 0:01:08.4]} 13. Qxd5 {[%clk 0:02:55.4]} 13... Qb4 {[%clk
0:01:00.6]} 14. Ne2 {[%clk 0:02:50.2]} 14... Nc6 {[%clk 0:00:57.9]} 15. Qb3
{[%clk 0:02:41.6]} 15... Qa5 {[%clk 0:00:49.7]} 16. e6 {[%clk 0:02:32.4]} 16...
fxe6 {[%clk 0:00:43.5]} 17. Qxe6+ {[%clk 0:02:33.3]} 17... Kh8 {[%clk
0:00:43.4]} 18. Rhf1 {[%clk 0:02:27.5]} 18... Bf6 {[%clk 0:00:41.8]} 19. Qb3
{[%clk 0:02:20.5]} 19... Rac8 {[%clk 0:00:37.9]} 20. c3 {[%clk 0:02:06.8]} 20...
b5 {[%clk 0:00:20.4]} 21. Kb1 {[%clk 0:01:56.9]} 21... b4 {[%clk 0:00:20.2]} 22.
c4 {[%clk 0:01:53.5]} 22... Qb6 {[%clk 0:00:07.1]} 23. Qc2 {[%clk 0:01:50.6]}
1-0